fUSD/lending_fUSD_20250823
["ID","MTS","AMOUNT","RATE_DAILY","PERIOD"]
[381032218,1755959450007,-151.0,0.000179,2]
[381032219,1755959450016,-151.0,0.000179,2]
[381032220,1755959450026,-425.989063,0.000179,2]
[381032221,1755959450035,-425.989063,0.000179,2]
[381032222,1755959450045,-425.989063,0.000179,2]
[381032223,1755959450055,-2717.58637,0.000179,2]
[381032224,1755959450065,-218.29727,0.000179,2]
[381032225,1755959450075,-425.989063,0.000179,2]
[381032226,1755959450086,-218.29727,0.000179,2]
[381032227,1755959450095,-2717.58637,0.000179,2]
[381032228,1755959450105,-218.29727,0.000179,2]
[381032229,1755959450115,-2717.58637,0.000179,2]
[381032230,1755959450124,-218.29727,0.000179,2]
[381032231,1755959450134,-420.093139,0.000179,2]
[381032232,1755959450143,-2717.58637,0.000179,2]
[381032233,1755959450153,-420.093139,0.000179,2]
[381032234,1755959450163,-420.093139,0.000179,2]
[381032235,1755959450276,-220.403461,0.000179,2]
[381032236,1755959450287,-151.0,0.000179,2]
[381032237,1755959450296,-160.429263,0.000179,2]
[381032238,1755959450307,-151.0,0.000179,2]
[381032239,1755959450317,-160.429263,0.000179,2]
[381032240,1755959450327,-160.429263,0.000179,2]
[381032241,1755959450338,-420.093139,0.000179,2]
[381032242,1755959450348,-151.0,0.000179,2]
[381032243,1755959450358,-151.0,0.000179,2]
[381032244,1755959450368,-160.429263,0.000179,2]
[381032245,1755959450377,-151.0,0.000179,2]
[381032246,1755959450387,-151.0,0.000179,2]
[381032247,1755959450397,-2728.497295,0.000179,2]
[381032248,1755959450406,-2728.497295,0.000179,2]
[381032249,1755959450416,-2728.497295,0.000179,2]
[381032250,1755959450426,-220.4560639,0.000179,2]
[381032251,1755959450435,-2728.497295,0.000179,2]
[381032252,1755959450446,-151.0,0.000179,2]
[381032253,1755959450455,-3209.740139,0.000179,2]
[381032254,1755959450465,-151.0,0.000179,2]
[381032255,1755959450476,-3209.740139,0.000179,2]
[381032256,1755959450485,-151.0,0.000179,2]
[381032257,1755959450494,-3209.740139,0.000179,2]
[381032258,1755959450504,-151.0,0.000179,2]
[381032259,1755959450513,-3209.740139,0.000179,2]
[381032260,1755959450523,-151.0,0.000179,2]
[381032261,1755959450532,-151.0,0.000179,2]
[381032262,1755959450542,-151.0,0.000179,2]
[381032263,1755959450551,-151.0,0.000179,2]
[381032264,1755959450561,-2558.510066,0.000179,2]
[381032265,1755959450570,-1170.954403,0.000179,2]
[381032266,1755959450580,-2558.510066,0.000179,2]
[381032267,1755959450589,-151.0,0.000179,2]
[381032268,1755959450598,-1170.954403,0.000179,2]
[381032269,1755959450607,-2558.510066,0.000179,2]
[381032270,1755959450616,-1170.954403,0.000179,2]
[381032271,1755959450625,-2558.510066,0.000179,2]
[381032272,1755959450635,-160.825479,0.000179,2]
[381032273,1755959450644,-906.07061635,0.000179,2]
[381032274,1755959452467,-150.0,0.00014199,3]
[381032275,1755959452481,-302.0,0.00014247,2]
[381032276,1755959452495,-139.31341522,0.00014255,2]
[381032277,1755959452669,-4627.84418068,0.00014255,2]
[381032278,1755959454546,-222.92563405,0.00012606,2]
[381032279,1755959454556,-324.24936461,0.000139,2]
[381032280,1755959630621,500.0,0.00028767,120]
[381032281,1755959708169,3148.66382526,7.945e-05,2]
[381032282,1755959708192,1827.53111574,7.945e-05,2]
[381032283,1755959721782,159.0,0.00028767,120]
[381032284,1755959725045,153.0,0.00028767,120]
[381032285,1755959726254,153.0,0.00028767,120]
[381032286,1755959726622,1220.0,0.00028767,120]
[381032287,1755959726940,153.0,0.00028767,120]
[381032288,1755959729887,152.0,0.00028767,120]
[381032289,1755959753750,154.0,0.00028767,120]
[381032290,1755959756172,154.0,0.00028767,120]
[381032291,1755959756635,154.0,0.00028767,120]
[381032293,1755959970314,168.0,7.9e-07,2]
[381032294,1755959998277,168.78577351,0.00028767,120]
[381032296,1755960020925,203.66588805,0.00028767,120]
[381032297,1755960021457,242.14104539,0.00028767,120]
[381032298,1755960023303,154.0,0.00028767,120]
[381032299,1755960024635,154.0,0.00028767,120]
[381032300,1755960025241,166.41447865,0.00028767,120]
[381032301,1755960052928,50000.0,0.00028767,120]
[381032304,1755960177240,567.72320495,0.00028,120]
[381032305,1755960279315,50000.0,0.00028767,120]
[381032306,1755960290141,2008.6327662,0.000287,120]
[381032337,1755960453990,1000.0,0.00028767,120]
[381032338,1755960461307,1000.0,0.00028767,120]
[381032339,1755960469472,1000.0,0.00028767,120]
[381032340,1755960481708,1000.0,0.00028767,120]
[381032341,1755960489422,1000.0,0.00028767,120]
[381032345,1755960498777,1000.0,0.00028767,120]
[381032346,1755960505577,1000.0,0.00028767,120]
[381032347,1755960508379,500.0,0.00028767,120]
[381032348,1755960513613,1000.0,0.00028767,120]
[381032349,1755960526799,1000.0,0.00028767,120]
[381032350,1755960541919,1234.5,0.00028767,120]
[381032373,1755960632299,-181.31,0.00012542,2]
[381032374,1755960632310,-505.23922764,0.00012569,2]
[381032375,1755960632343,-1759.829899,0.00012569,2]
[381032376,1755960632518,-52.69312744,0.00012569,2]
[381032377,1755960632528,-2000.0,0.0001277,3]
[381032378,1755960632537,-810.48341673,0.00013,3]
[381032379,1755960632547,-551.92104594,0.00013279,2]
[381032380,1755960637447,-1182.0,0.00013279,2]
[381032381,1755960637553,-324.52757988,0.00013279,2]
[381032382,1755960637565,-529.99257307,0.00013279,2]
[381032383,1755960637576,-1000.0,0.00013699,2]
[381032384,1755960637586,-2000.0,0.00013796,3]
[381032385,1755960637596,-708.0,0.00013796,2]
[381032386,1755960637606,-300.0,0.00013897,2]
[381032387,1755960637616,-458.60200496,0.00013898,2]
[381032388,1755960637628,-212.10093811,0.00013898,2]
[381032389,1755960637638,-160.0,0.00013898,2]
[381032390,1755960637648,-1523.0,0.00013903,2]
[381032391,1755960637657,-168.23,0.00014,2]
[381032392,1755960637668,-844.27675029,0.00014115,2]
[381032393,1755960637678,-277.35679052,0.00014123,2]
[381032394,1755960637688,-500.0,0.00014703,2]
[381032395,1755960637698,-322.6107,0.00014703,2]
[381032396,1755960637709,-2030.0,0.00014712,2]
[381032397,1755960637719,-3373.0,0.00014712,2]
[381032398,1755960637729,-925.0,0.00014712,2]
[381032399,1755960637739,-589.304,0.00014712,2]
[381032400,1755960637751,-1298.0,0.00014712,2]
[381032401,1755960637760,-566.0,0.00014712,2]
[381032402,1755960637770,-1657.0,0.00014712,2]
[381032403,1755960637779,-599.0,0.00014712,2]
[381032404,1755960637789,-5030.65,0.00014712,2]
[381032405,1755960637798,-2516.76010453,0.00014712,2]
[381032406,1755960637810,-1636.23989547,0.00014712,2]
[381032407,1755960637820,-4833.26579281,0.00014712,2]
[381032408,1755960637835,-2301.7580732,0.00014712,2]
[381032409,1755960637848,-659.36073154,0.00014712,2]
[381032414,1755960637883,-13715.61540245,0.00014712,2]
[381032415,1755960637893,-718.0,0.00014712,2]
[381032416,1755960637902,-500.0,0.00014758,2]
[381032417,1755960637912,-4911.97550699,0.00014863,2]
[381032418,1755960637923,-883.89939497,0.00014863,2]
[381032422,1755960639431,-150.0,0.00014199,3]
[381032423,1755960639441,-486.924,0.00014863,2]
[381032424,1755960639526,-212.03348137,0.00014863,2]
[381032425,1755960639544,-250.0,0.00015,2]
[381032426,1755960639554,-486.0,0.0001507,2]
[381032427,1755960639564,-420.0,0.00015226,2]
[381032428,1755960639574,-287.61899177,0.00015492,2]
[381032429,1755960639583,-200.0,0.00015504,2]
[381032430,1755960639593,-1000.0,0.00015515,2]
[381032431,1755960639603,-250.0,0.00015535,2]
[381032432,1755960639613,-1000.0,0.00015634,2]
[381032433,1755960639627,-703.15,0.00015686,2]
[381032434,1755960639638,-610.0,0.00015755,2]
[381032435,1755960639648,-168.1,0.00015766,2]
[381032436,1755960639658,-372.3975533,0.00015844,2]
[381032437,1755960639670,-421.0,0.00015922,2]
[381032438,1755960639690,-421.0,0.00015931,2]
[381032439,1755960639701,-421.0,0.00015943,2]
[381032440,1755960639711,-421.0,0.00016007,2]
[381032441,1755960639720,-469.06,0.00016027,2]
[381032442,1755960639730,-463.51,0.00016057,2]
[381032443,1755960639739,-463.51,0.00016057,2]
[381032444,1755960639750,-334.5472959,0.00016072,2]
[381032445,1755960639760,-3553.77,0.000161,2]
[381032446,1755960639769,-4312.06,0.00016116,2]
[381032447,1755960639778,-421.0,0.00016133,2]
[381032448,1755960639788,-421.0,0.00016149,2]
[381032449,1755960639797,-421.0,0.00016268,2]
[381032450,1755960639807,-421.0,0.00016293,2]
[381032451,1755960639816,-421.0,0.00016348,2]
[381032452,1755960639825,-421.0,0.00016358,2]
[381032453,1755960639834,-421.0,0.00016397,2]
[381032454,1755960639844,-421.0,0.00016408,2]
[381032455,1755960639853,-666.0,0.00016438,3]
[381032456,1755960639863,-717.9350554,0.00016438,2]
[381032457,1755960639872,-600.0,0.00016438,2]
[381032458,1755960639881,-600.0,0.00016438,2]
[381032459,1755960639890,-600.0,0.00016438,2]
[381032460,1755960639900,-600.0,0.00016438,2]
[381032462,1755960639909,-600.0,0.00016438,2]
[381032463,1755960639918,-600.0,0.00016438,2]
[381032464,1755960639928,-600.0,0.00016438,2]
[381032465,1755960639936,-600.0,0.00016438,2]
[381032466,1755960639946,-600.0,0.00016438,2]
[381032467,1755960639955,-600.0,0.00016438,2]
[381032468,1755960639965,-600.0,0.00016438,2]
[381032469,1755960639974,-300.0,0.00016439,3]
[381032470,1755960639983,-486.0,0.0001644,2]
[381032471,1755960639995,-500.0,0.00016448,2]
[381032472,1755960640004,-703.15,0.0001647,2]
[381032473,1755960640013,-7169.73,0.000165,2]
[381032474,1755960640023,-1898.68778903,0.000165,2]
[381032475,1755960640035,-20885.13221097,0.000165,2]
[381032476,1755960640045,-150.0,0.00016575,2]
[381032477,1755960640055,-408.48,0.00016575,2]
[381032478,1755960640064,-421.0,0.00016642,2]
[381032479,1755960640074,-421.0,0.00016683,2]
[381032480,1755960640083,-587.0,0.00016683,2]
[381032481,1755960640094,-150.89,0.00016712,2]
[381032482,1755960640104,-190.14404144,0.00016762,7]
[381032483,1755960640113,-188.0,0.000168,2]
[381032484,1755960640122,-421.0,0.00016823,2]
[381032485,1755960640132,-298.26089446,0.00016861,2]
[381032486,1755960640142,-421.0,0.00016874,2]
[381032487,1755960640152,-2000.0,0.00016884,2]
[381032488,1755960640161,-500.0,0.00016884,2]
[381032489,1755960640172,-890.92630699,0.000169,3]
[381032490,1755960640181,-1271.32610932,0.00016917,2]
[381032491,1755960640191,-2375.27692691,0.00017,2]
[381032492,1755960640202,-4794.45307309,0.00017,2]
[381032493,1755960640212,-22783.82,0.00017,2]
[381032494,1755960640221,-300.0,0.00017,2]
[381032495,1755960640231,-421.0,0.00017009,2]
[381032496,1755960640241,-151.0,0.00017079,2]
[381032497,1755960640251,-151.0,0.00017084,2]
[381032498,1755960640260,-151.0,0.00017089,2]
[381032499,1755960640270,-421.0,0.00017094,2]
[381032500,1755960640280,-151.0,0.00017095,2]
[381032501,1755960640290,-421.0,0.00017144,2]
[381032502,1755960640299,-421.0,0.00017162,2]
[381032503,1755960640309,-4155.186,0.00017174,2]
[381032504,1755960640318,-501.284,0.00017174,2]
[381032505,1755960640328,-421.0,0.00017218,2]
[381032506,1755960640337,-703.15,0.00017255,2]
[381032507,1755960640347,-166.06,0.00017297,2]
[381032508,1755960640357,-2000.0,0.000173,2]
[381032509,1755960640366,-166.06,0.00017316,2]
[381032510,1755960640376,-166.06,0.00017317,2]
[381032511,1755960640386,-500.0,0.0001732,2]
[381032512,1755960640395,-421.0,0.00017345,2]
[381032513,1755960640405,-346.92554585,0.00017441,2]
[381032514,1755960640415,-1000.0,0.00017455,2]
[381032515,1755960640425,-421.0,0.00017484,2]
[381032516,1755960640434,-421.0,0.00017495,2]
[381032517,1755960640443,-421.0,0.00017539,2]
[381032518,1755960640454,-150.0,0.00017662,2]
[381032519,1755960640464,-150.0,0.00017662,2]
[381032520,1755960640474,-200.0,0.00017662,2]
[381032521,1755960640483,-200.0,0.00017662,2]
[381032522,1755960640493,-500.0,0.00017662,2]
[381032523,1755960640502,-500.0,0.00017662,2]
[381032524,1755960640512,-500.0,0.00017662,2]
[381032525,1755960640521,-621.0,0.00017662,2]
[381032526,1755960640531,-200.0,0.00017662,2]
[381032527,1755960640541,-150.0,0.00017662,2]
[381032528,1755960640551,-254.36287709,0.00017662,2]
[381032529,1755960640560,-300.0,0.00017662,2]
[381032530,1755960640570,-150.0,0.00017662,2]
[381032531,1755960640579,-150.0,0.00017662,2]
[381032532,1755960640589,-298.05435818,0.00017662,2]
[381032533,1755960640598,-500.0,0.00017662,2]
[381032534,1755960640608,-2030.0,0.00017712,2]
[381032535,1755960640617,-3368.0,0.00017712,2]
[381032536,1755960640628,-589.516,0.00017712,2]
[381032537,1755960640637,-1298.0,0.00017712,2]
[381032538,1755960640647,-566.0,0.00017712,2]
[381032539,1755960640657,-1657.0,0.00017712,2]
[381032540,1755960640666,-599.0,0.00017712,2]
[381032541,1755960640675,-3984.74548593,0.00017712,2]
[381032542,1755960640687,-168.25451407,0.00017712,2]
[381032543,1755960640697,-21510.0,0.00017712,2]
[381032544,1755960640706,-718.0,0.00017712,2]
[381032545,1755960640716,-880.81066434,0.00017718,2]
[381032546,1755960640725,-953.76137,0.0001772,2]
[381032547,1755960640735,-500.0,0.00017756,2]
[381032548,1755960640745,-273.0,0.00017779,2]
[381032549,1755960640755,-9.45069354,0.000178,2]
[381032550,1755960640766,-824.35063534,0.000178,2]
[381032551,1755960640776,-486.0,0.0001781,2]
[381032552,1755960640785,-953.76137,0.0001784,2]
[381032553,1755960640794,-1801.33566912,0.0001787,2]
[381032554,1755960640804,-9842.9899,0.000179,2]
[381032555,1755960640813,-212.0,0.000179,2]
[381032556,1755960640822,-213.0,0.000179,2]
[381032557,1755960640831,-213.0,0.000179,2]
[381032558,1755960640841,-213.0,0.000179,2]
[381032559,1755960640851,-486.0,0.000179,2]
[381032560,1755960640860,-486.0,0.000179,2]
[381032561,1755960640870,-486.0,0.000179,2]
[381032562,1755960640879,-486.0,0.000179,2]
[381032563,1755960640889,-486.0,0.000179,2]
[381032564,1755960640899,-486.0,0.000179,2]
[381032565,1755960640908,-486.0,0.000179,2]
[381032566,1755960640918,-486.0,0.000179,2]
[381032567,1755960640927,-486.0,0.000179,2]
[381032568,1755960640936,-486.0,0.000179,2]
[381032569,1755960640946,-486.0,0.000179,2]
[381032570,1755960640955,-486.0,0.000179,2]
[381032571,1755960640965,-486.0,0.000179,2]
[381032572,1755960640975,-486.0,0.000179,2]
[381032573,1755960640985,-486.0,0.000179,2]
[381032574,1755960640995,-486.0,0.000179,2]
[381032575,1755960641004,-486.0,0.000179,2]
[381032576,1755960641014,-5763.51742553,0.000179,2]
[381032577,1755960641156,-3754.66585219,0.000179,2]
[381032578,1755960641169,-482.25934277,0.000179,2]
[381032579,1755960641182,-3061.63627903,0.000179,2]
[381032580,1755960641196,-937.92110048,0.000179,2]
[381032581,1755960641206,-1000.0,0.000179,2]
[381032582,1755960641216,-180.35836492,0.000179,2]
[381032583,1755960641226,-178.34050724,0.000179,2]
[381032584,1755960641235,-3451.82702736,0.000179,2]
[381032585,1755960641247,-1202.799999,0.000179,2]
[381032586,1755960641268,-345.37297364,0.000179,2]
[381032587,1755960641278,-156.9430125,0.000179,2]
[381032588,1755960641287,-500.0,0.00017936,2]
[381032589,1755960641297,-500.0,0.00017936,2]
[381032590,1755960641307,-500.0,0.00017936,2]
[381032591,1755960641317,-621.0,0.00017936,2]
[381032592,1755960641327,-300.0,0.00017936,2]
[381032593,1755960641336,-420.55110304,0.00017936,2]
[381032594,1755960641346,-150.0,0.00017936,2]
[381032595,1755960641355,-500.0,0.00017936,2]
[381032596,1755960641365,-732.5169198,0.0001797,7]
[381032597,1755960641375,-2000.0,0.00017972,2]
[381032598,1755960641384,-701.0,0.00017973,2]
[381032599,1755960641394,-420.71210239,0.00017973,2]
[381032600,1755960641404,-440.51454234,0.00017973,2]
[381032601,1755960641414,-500.0,0.00017973,2]
[381032602,1755960641424,-170.7422638,0.00017973,2]
[381032603,1755960641434,-500.0,0.00017973,2]
[381032604,1755960641443,-459.45481003,0.00017973,2]
[381032605,1755960641453,-500.0,0.00017973,2]
[381032606,1755960641463,-500.0,0.00017973,2]
[381032607,1755960641473,-985.0,0.00017974,2]
[381032608,1755960641484,-329.0,0.00017974,2]
[381032609,1755960641494,-185.0,0.0001798,2]
[381032610,1755960641504,-138.07800565,0.00017999,7]
[381032611,1755960641526,-150.0,0.00014699,3]
[381032612,1755960641536,-28661.92219435,0.00017999,7]
[381032613,1755960641546,-2000.0,0.00017999,2]
[381032614,1755960641556,-2000.0,0.00017999,2]
[381032615,1755960641565,-2000.0,0.00017999,2]
[381032616,1755960641575,-1000.0,0.00017999,2]
[381032617,1755960641585,-330732.2280516,0.00017999,2]
[381032618,1755960641904,-2000.0,0.00018,2]
[381032619,1755960641914,-2000.0,0.00018,2]
[381032620,1755960641923,-2000.0,0.00018,2]
[381032621,1755960641933,-14443.83926886,0.00018,2]
[381032630,1755960643445,-350.50708215,0.00012568,2]
[381032631,1755960643455,-300.0,0.00016939,3]
[381032632,1755960643465,-151.0,0.00017097,2]
[381032633,1755960643474,-504.55773723,0.00018,2]
[381032634,1755960643494,-2857.51138992,0.00018,2]
[381032635,1755960643507,-334613.04894282,0.00018,2]
[381032636,1755960643516,-49897.64401955,0.00018,2]
[381032637,1755960643535,-23818.19928194,0.00018,2]
[381032638,1755960643569,-13929.45355702,0.00018,2]
[381032639,1755960643580,-264.488224,0.00018,2]
[381032645,1755960645713,-1172.0,0.00014712,2]
[381032646,1755960645723,-150.0,0.00017439,3]
[381032647,1755960645733,-5000.0,0.000179,2]
[381032648,1755960645743,-12158.50379224,0.00018,2]
[381032649,1755960645754,-2032.8988,0.00018,2]
[381032650,1755960645766,-16699.12214401,0.00018,2]
[381032651,1755960645846,-1607.6220813,0.00018,2]
[381032652,1755960645856,-1166.43881831,0.00018,2]
[381032653,1755960645866,-697.48473141,0.00018,4]
[381032654,1755960645877,-302.51526859,0.00018,4]
[381032655,1755960645888,-62.32259441,0.00018,4]
[381032664,1755960861740,819.0,0.00028767,120]
[381032665,1755960876624,154.0,0.000287,120]
[381032666,1755960877979,154.0,0.000287,120]
[381032667,1755960878662,154.0,0.000287,120]
[381032668,1755960887013,154.0,0.000287,120]
[381032669,1755960887402,154.0,0.000287,120]
[381032670,1755960907298,154.0,0.000287,120]
[381032671,1755960907848,154.0,0.000287,120]
[381032672,1755960915770,154.0,0.000287,120]
[381032673,1755960915871,154.0,0.000287,120]
[381032674,1755960916400,154.0,0.000287,120]
[381032675,1755960929630,154.0,0.000287,120]
[381032676,1755960931727,154.0,0.000287,120]
[381032684,1755961211357,301.0,0.00026365,120]
[381032685,1755961212158,301.0,0.00027684,120]
[381032689,1755961396430,-150.0,0.00012173,2]
[381032690,1755961426398,500.0,0.00028767,120]
[381032692,1755961510680,181.0,0.00026122,120]
[381032693,1755961512077,181.0,0.00027429,120]
[381032695,1755961712749,1448.8,0.00028767,120]
[381032696,1755961809343,181.0,0.00026097,120]
[381032697,1755961809983,181.0,0.00027401,120]
[381032699,1755961831760,-150.0,0.0001231,2]
[381032700,1755961831770,-181.31,0.00012347,2]
[381032701,1755961831781,-161.42,0.00012541,4]
[381032702,1755961831791,-300.0,0.0001302,2]
[381032703,1755961831802,-932.0,0.0001302,2]
[381032704,1755961831813,-423.6,0.00013086,2]
[381032705,1755961831824,-420.93,0.00013086,2]
[381032706,1755961831835,-419.69,0.00013086,2]
[381032707,1755961831848,-424.19,0.00013086,2]
[381032708,1755961831870,-417.84,0.00013086,2]
[381032709,1755961831883,-245.3549575,0.00013389,2]
[381032710,1755961831893,-2000.0,0.0001339,3]
[381032711,1755961831904,-2000.0,0.00013431,3]
[381032712,1755961831915,-417.6,0.00013437,2]
[381032713,1755961831926,-432.85,0.00013437,2]
[381032714,1755961831937,-419.56,0.00013437,2]
[381032715,1755961831947,-250.0,0.00013581,2]
[381032716,1755961831957,-310.0,0.00013581,2]
[381032717,1755961831968,-1485.65504249,0.0001363,2]
[381032718,1755961831985,-11490.14110268,0.0001363,2]
[381032719,1755961831999,-455.89727717,0.0001363,2]
[381032720,1755961832110,-350.442983,0.0001363,2]
[381032721,1755961832130,-1167.87807166,0.0001363,2]
[381032722,1755961832141,-1000.0,0.00013699,2]
[381032723,1755961832152,-244.9364057,0.00013772,2]
[381032724,1755961832164,-186.3835943,0.00013772,2]
[381032725,1755961832175,-425.28,0.00013772,2]
[381032726,1755961832186,-151.0,0.00013825,2]
[381032727,1755961832198,-417.65,0.00013903,2]
[381032729,1755961832208,-430.75,0.00013903,2]
[381032731,1755961832218,-424.28,0.00013903,2]
[381032733,1755961832228,-1523.0,0.0001393,2]
[381032734,1755961832238,-844.27675029,0.00014191,2]
[381032735,1755961832248,-212.10093811,0.00014191,2]
[381032736,1755961832258,-160.0,0.00014191,2]
[381032737,1755961832268,-203.51979248,0.00014191,2]
[381032738,1755961832305,-255.08221248,0.00014191,2]
[381032739,1755961832314,-150.0,0.00014568,2]
[381032740,1755961832325,-588.51598421,0.00014569,2]
[381032742,1755961832351,-583.48401579,0.00014569,2]
[381032744,1755961832360,-894.0,0.00014569,2]
[381032746,1755961832370,-6093.0,0.00014569,2]
[381032748,1755961832380,-718.0,0.00014569,2]
[381032750,1755961832390,-4153.0,0.00014569,2]
[381032752,1755961832401,-2032.53484078,0.00014569,2]
[381032754,1755961832413,-19477.46515922,0.00014569,2]
[381032755,1755961832423,-151.0,0.00014713,2]
[381032756,1755961832433,-250.88188247,0.00014713,2]
[381032757,1755961832443,-782.7564973,0.00014721,2]
[381032758,1755961832455,-541.53440045,0.00014721,2]
[381032760,1755961837722,-150.0,0.00014199,3]
[381032762,1755961837732,-675.70910225,0.00014721,2]
[381032763,1755961837742,-425.85,0.00014722,2]
[381032764,1755961837753,-151.04,0.00014722,2]
[381032765,1755961837763,-152.76,0.00014722,2]
[381032766,1755961837773,-423.26,0.00014722,2]
[381032767,1755961837783,-420.36,0.00014722,2]
[381032768,1755961837793,-150.0,0.00014722,2]
[381032769,1755961837802,-150.0,0.00014722,2]
[381032770,1755961837812,-150.0,0.00014722,2]
[381032771,1755961837822,-150.0,0.00014722,2]
[381032772,1755961837832,-1255.0,0.00014722,2]
[381032773,1755961837842,-925.0,0.00014722,2]
[381032774,1755961837852,-680.87260945,0.00014722,2]
[381032775,1755961837864,-956.59964052,0.00014722,2]
[381032776,1755961837876,-1735.52775003,0.00014722,2]
[381032777,1755961837886,-2030.0,0.00014722,2]
[381032778,1755961837896,-599.0,0.00014722,2]
[381032779,1755961837906,-1298.0,0.00014722,2]
[381032780,1755961837916,-1657.0,0.00014722,2]
[381032781,1755961837926,-566.0,0.00014722,2]
[381032782,1755961837936,-250.0,0.00015,2]
[381032783,1755961837946,-712.27,0.00015171,2]
[381032784,1755961837956,-168.1,0.00015264,2]
[381032785,1755961837966,-200.0,0.00015309,2]
[381032786,1755961837976,-497.26,0.00015424,2]
[381032787,1755961837990,-250.0,0.00015429,2]
[381032788,1755961837999,-637.63244997,0.00015512,2]
[381032789,1755961838011,-362.36755003,0.00015512,2]
[381032791,1755961838021,-968.01007917,0.00015615,2]
[381032795,1755961838050,-784.790448,0.00015615,2]
[381032797,1755961838063,-247.19947283,0.00015615,2]
[381032800,1755961838074,-1000.0,0.00015635,2]
[381032802,1755961838083,-255.0,0.0001569,2]
[381032804,1755961838095,-89.97474387,0.0001593,2]
[381032806,1755961838108,-546.19327947,0.0001593,2]
[381032820,1755961838263,-150.0,0.00014699,3]
[381032822,1755961838273,-76.10197666,0.0001593,2]
[381032824,1755961838283,-190.2,0.00015987,2]
[381032826,1755961838292,-200.0,0.00016,7]
[381032827,1755961838302,-1794.50354125,0.000161,2]
[381032828,1755961839647,-1403.89645875,0.000161,2]
[381032829,1755961839656,-9999.99,0.00016116,2]
[381032830,1755961839666,-721.12765535,0.00016182,2]
[381032831,1755961839676,-322.6107,0.00016182,2]
[381032832,1755961839686,-277.35679052,0.00016182,2]
[381032833,1755961839695,-500.0,0.00016438,2]
[381032834,1755961839705,-666.0,0.00016438,3]
[381032835,1755961839715,-500.53764133,0.00016438,2]
[381032836,1755961839724,-600.0,0.00016438,2]
[381032837,1755961839734,-600.0,0.00016438,2]
[381032838,1755961839743,-600.0,0.00016438,2]
[381032839,1755961839753,-600.0,0.00016438,2]
[381032840,1755961839762,-600.0,0.00016438,2]
[381032841,1755961839772,-600.0,0.00016438,2]
[381032842,1755961839781,-600.0,0.00016438,2]
[381032843,1755961839791,-600.0,0.00016438,2]
[381032844,1755961839800,-600.0,0.00016438,2]
[381032845,1755961839810,-600.0,0.00016438,2]
[381032846,1755961839819,-600.0,0.00016438,2]
[381032847,1755961839828,-300.0,0.00016439,3]
[381032848,1755961839838,-500.0,0.0001646,2]
[381032849,1755961839849,-500.0,0.00016481,2]
[381032850,1755961839858,-29252.52,0.000165,2]
[381032851,1755961839868,-5850.5,0.000165,2]
[381032852,1755961839878,-300.4115155,0.000165,2]
[381032853,1755961839943,-3209.8884845,0.000165,2]
[381032854,1755961839953,-500.0,0.00016503,2]
[381032855,1755961839962,-500.0,0.00016524,2]
[381032856,1755961839972,-500.0,0.00016545,2]